bitfinex/quotes_SOLUSD_20250903
["timestamp","ask_amount","ask_price","bid_price","bid_amount"]
[1756907819836,7.95522483,211.8,211.74,12.67799804]
[1756907820046,7.95522483,211.8,211.74,4.72277321]
[1756907820340,7.95522483,211.79,211.74,4.72277321]
[1756907820550,7.95522483,211.78,211.74,4.72277321]
[1756907820747,7.95522483,211.77,211.74,4.72277321]
[1756907821128,7.95522483,211.76,211.72,31.42306268]
[1756907821339,7.95522483,211.77,211.72,31.42306268]
[1756907821631,7.95522483,211.78,211.72,31.42306268]
[1756907822152,7.95522483,211.77,211.72,31.42306268]
[1756907822462,0.7,211.82,211.73,8.65522483]
[1756907822656,7.95522483,211.79,211.73,8.65522483]
[1756907822954,7.95522483,211.78,211.73,0.7]
[1756907823634,30.72080279,211.83,211.71,0.03]
[1756907823635,7.95522483,211.77,211.71,0.03]
[1756907823831,7.95522483,211.77,211.72,0.7]
[1756907824160,7.95522483,211.78,211.73,0.7]
[1756907825046,0.7,211.8,211.73,0.7]
[1756907825248,7.95522483,211.78,211.73,0.7]
[1756907825556,7.95522483,211.79,211.73,0.7]
[1756907825755,7.95522483,211.77,211.71,0.73]
[1756907826148,7.95522483,211.77,211.71,8.68522483]
[1756907826453,0.7,211.77,211.71,0.73]
[1756907826650,7.95522483,211.72,211.71,0.03]
[1756907826854,8.65522483,211.72,211.71,0.03]
[1756907827945,0.7,211.82,211.71,8.68522483]
[1756907828248,0.7,211.86,211.8,7.95522483]
[1756907828448,0.7,211.89,211.82,7.95522483]
[1756907828633,0.06,211.82,211.77,0.7]
[1756907828836,0.06,211.82,211.79,7.95522483]
[1756907829339,0.06,211.85,211.81,7.95522483]
[1756907829555,0.06,211.85,211.84,7.95522483]
[1756907830054,0.06,211.87,211.84,8.65522483]
[1756907830351,0.06,211.94,211.86,7.95522483]
[1756907830547,0.06,211.94,211.89,7.95522483]
[1756907831539,3.32879058,211.94,211.88,3.26879058]
[1756907831740,3.32879058,211.94,211.88,0.68]
[1756907831957,3.32879058,211.94,211.88,3.94879058]
[1756907832437,0.06,211.94,211.88,0.68]
[1756907832759,0.06,211.94,211.88,3.26879058]
[1756907832760,3.32879058,211.94,211.88,3.26879058]
[1756907833337,0.06,211.94,211.88,3.26879058]
[1756907833544,3.32879058,211.94,211.88,3.26879058]
[1756907833859,3.26879058,211.92,211.86,3.26879058]
[1756907834057,3.26879058,211.92,211.86,3.94879058]
[1756907834254,0.69,211.93,211.85,29.26879058]
[1756907834443,3.26879058,211.93,211.87,0.68]
[1756907834641,0.06,211.94,211.87,0.68]
[1756907834843,0.06,211.94,211.88,0.68]
[1756907835160,3.32879058,211.94,211.88,0.68]
[1756907835650,3.26879058,211.92,211.85,29.94879058]
[1756907835851,4.01879058,211.91,211.85,0.68]
[1756907836058,3.26879058,211.9,211.82,39.59559401]
[1756907836235,3.32879058,211.91,211.85,3.26879058]
[1756907836440,3.32879058,211.91,211.84,0.68]
[1756907836661,0.06,211.91,211.85,3.26879058]
[1756907836860,3.32879058,211.91,211.85,3.26879058]
[1756907837663,0.06,211.91,211.86,3.94879058]
[1756907837845,0.06,211.91,211.89,3.26879058]
[1756907838049,0.06,211.94,211.9,29.26879058]
[1756907838248,0.06,211.94,211.93,3.26879058]
[1756907838462,0.06,211.96,211.93,3.26879058]
[1756907838668,0.06,211.96,211.95,3.26879058]
[1756907839168,0.06,211.96,211.95,4.64155343]
[1756907839339,0.06,211.96,211.92,26.0]
[1756907839545,8.00344595,211.96,211.9,26.0]
[1756907839967,7.94344595,211.95,211.9,26.0]
[1756907840281,8.63344595,211.95,211.9,26.0]
[1756907840566,7.94344595,211.95,211.9,26.68]
[1756907840861,7.94344595,211.94,211.9,26.68]
[1756907841089,4.77788109,211.96,211.9,26.68]
[1756907841090,7.94344595,211.95,211.9,26.68]
[1756907841564,7.94344595,211.95,211.87,13.59559401]
[1756907841565,7.94344595,211.93,211.87,14.27559401]
[1756907841863,7.94344595,211.93,211.87,52.93888643]
[1756907842050,0.69,211.93,211.87,26.0]
[1756907842246,7.94344595,211.91,211.87,26.0]
[1756907842459,7.94344595,211.92,211.87,26.68]
[1756907842975,7.94344595,211.92,211.87,31.39986758]
[1756907843179,7.94344595,211.92,211.87,26.68]
[1756907843356,7.94344595,211.9,211.87,105.7]
[1756907843554,7.94344595,211.89,211.87,79.7]
[1756907843971,7.94344595,211.88,211.82,0.68]
[1756907844172,7.94344595,211.85,211.82,0.68]
[1756907844455,0.69,211.89,211.81,7.94344595]
[1756907844456,7.94344595,211.88,211.81,7.94344595]
[1756907844670,7.94344595,211.87,211.82,0.68]
[1756907844871,7.94344595,211.86,211.81,26.0]
[1756907845176,7.94344595,211.86,211.82,0.68]
[1756907845380,0.69,211.89,211.81,30.7212124]
[1756907845580,7.94344595,211.86,211.83,0.68]
[1756907845767,7.94344595,211.86,211.84,4.7205438]
[1756907846972,7.94344595,211.85,211.82,4.72098951]
[1756907847884,8.63344595,211.86,211.84,0.03]
[1756907848083,0.69,211.89,211.84,0.03]
[1756907848387,7.94344595,211.87,211.84,0.03]
[1756907848686,0.06,211.91,211.84,0.03]
[1756907848687,7.94344595,211.86,211.84,0.03]
[1756907849273,7.94344595,211.85,211.84,0.03]
[1756907849575,7.94344595,211.86,211.84,0.03]
[1756907849883,8.63344595,211.86,211.84,0.03]
[1756907850085,0.69,211.86,211.84,0.03]
[1756907850380,7.94344595,211.86,211.84,0.03]
[1756907850583,0.69,211.88,211.84,0.03]
[1756907850879,0.69,211.87,211.84,0.03]
[1756907851185,0.06,211.91,211.84,0.03]
[1756907851381,7.94344595,211.88,211.84,0.03]
[1756907851684,8.63344595,211.88,211.84,0.03]
[1756907851897,0.69,211.88,211.84,0.03]
[1756907852065,0.06,211.91,211.85,0.68]
[1756907852266,8.00344595,211.91,211.85,26.68]
[1756907852572,0.06,211.91,211.87,7.94344595]
[1756907852767,0.06,211.91,211.86,4.04841172]
[1756907852983,8.63344595,211.9,211.86,3.36841172]
[1756907853287,7.94344595,211.9,211.86,29.36841172]
[1756907853488,8.00344595,211.91,211.87,3.36841172]
[1756907853676,0.06,211.91,211.87,3.36841172]
[1756907853875,0.06,211.91,211.88,4.71965263]
[1756907854089,8.00344595,211.91,211.87,3.36841172]
[1756907854272,0.06,211.91,211.87,8.08823933]
[1756907854472,8.00344595,211.91,211.87,8.08823933]
[1756907854690,8.69344595,211.91,211.87,8.08823933]
[1756907854895,8.00344595,211.91,211.87,8.08823933]
[1756907855196,8.69344595,211.91,211.87,8.08823642]
[1756907855394,0.06,211.91,211.87,8.08823642]
[1756907855576,0.69,211.9,211.87,8.08823642]
[1756907855776,0.06,211.91,211.87,8.08823642]
[1756907856502,0.06,211.91,211.88,0.68]
[1756907856799,0.06,211.91,211.87,8.08823642]
[1756907856972,0.75,211.91,211.87,87.78823642]
[1756907857169,0.06,211.91,211.87,85.0998247]
[1756907857392,11.80750321,211.91,211.87,4.7198247]
[1756907857600,0.06,211.91,211.88,0.68]
[1756907857899,0.06,211.91,211.89,4.71942989]
[1756907858399,0.06,211.91,211.87,8.09010638]
[1756907858691,0.06,211.91,211.87,3.37035384]
[1756907858692,0.75,211.91,211.87,3.37035384]
[1756907858891,11.74750321,211.9,211.87,3.37035384]
[1756907859412,12.43750321,211.9,211.87,3.37035384]
[1756907859906,0.06,211.91,211.87,3.37035384]
[1756907859907,11.74750321,211.88,211.87,3.37035384]
[1756907860088,12.43750321,211.88,211.84,4.76307443]
[1756907860288,11.74750321,211.86,211.84,4.76307443]
[1756907860485,11.74750321,211.87,211.84,9.48358306]
[1756907860884,0.69,211.9,211.84,9.48358306]
[1756907861102,11.74750321,211.87,211.84,4.76307443]
[1756907861277,12.43750321,211.87,211.84,4.76307443]
[1756907861588,5.11138456,211.87,211.84,9.48352553]
[1756907861976,5.82138456,211.87,211.84,9.48352553]
[1756907862173,5.11138456,211.85,211.84,0.03]
[1756907862880,5.82138456,211.85,211.84,0.03]
[1756907863971,10.54170554,211.85,211.84,0.03]
[1756907864179,10.54170554,211.85,211.81,0.03]
[1756907864180,35.938102,211.85,211.81,0.03]
[1756907864399,5.11138456,211.82,211.81,0.03]
[1756907864777,5.82138456,211.82,211.81,0.03]
[1756907865184,0.71,211.82,211.81,0.03]
[1756907865407,5.11138456,211.82,211.81,0.03]
[1756907865704,5.11138456,211.83,211.81,0.03]
[1756907866117,5.11138456,211.84,211.81,0.03]
[1756907866320,5.11138456,211.83,211.81,0.03]
[1756907866497,5.11138456,211.82,211.81,0.03]
[1756907866900,0.71,211.85,211.81,0.03]
[1756907867093,5.11138456,211.83,211.81,0.03]
[1756907867308,0.71,211.84,211.81,0.03]
[1756907867503,5.11138456,211.82,211.81,0.03]
[1756907868096,0.71,211.83,211.81,0.03]
[1756907868402,0.71,211.87,211.82,0.68]
[1756907868590,5.11138456,211.85,211.81,0.03]
[1756907869000,5.82138456,211.85,211.81,0.03]
[1756907869992,5.11138456,211.86,211.81,0.71]
[1756907870412,5.11138456,211.86,211.81,4.09070012]
[1756907870910,5.82138456,211.86,211.82,4.72098951]
[1756907871129,4.71951283,211.89,211.81,4.09070012]
[1756907871130,5.11138456,211.84,211.81,4.75121006]
[1756907871490,5.11138456,211.87,211.81,4.75121006]
[1756907871698,0.71,211.9,211.82,5.79138456]
[1756907871916,5.11138456,211.88,211.82,9.17208468]
[1756907872097,0.06,211.91,211.82,9.17208468]
[1756907872098,5.11138456,211.87,211.82,4.06070012]
[1756907872300,5.11138456,211.88,211.83,4.06070012]
[1756907872518,5.11138456,211.87,211.83,0.68]
[1756907872737,0.71,211.88,211.82,3.38070012]
[1756907873039,5.11138456,211.87,211.82,3.38070012]
[1756907873217,5.11138456,211.87,211.82,4.06070012]
[1756907873415,5.11138456,211.87,211.82,8.78157055]
[1756907873612,0.06,211.91,211.82,8.78157055]
[1756907873814,5.11138456,211.87,211.83,3.38070012]
[1756907874030,5.82138456,211.87,211.84,3.38070012]
[1756907874339,5.11138456,211.88,211.83,3.38070012]
[1756907874525,0.71,211.88,211.83,4.06070012]
[1756907874841,5.11138456,211.88,211.84,4.06070012]
[1756907875037,5.11138456,211.88,211.83,3.38070012]
[1756907875241,5.11138456,211.87,211.84,3.38070012]
[1756907875443,5.11138456,211.87,211.85,3.38070012]
[1756907875616,5.11138456,211.87,211.84,4.72052923]
[1756907875936,0.71,211.88,211.84,8.10122935]
[1756907876169,5.11138456,211.87,211.84,4.72052923]
[1756907876327,0.71,211.88,211.84,8.10122935]
[1756907876527,5.11138456,211.87,211.84,4.72052923]
[1756907876732,5.11138456,211.87,211.84,8.10122935]
[1756907876936,5.82138456,211.87,211.83,8.10143232]
[1756907877238,5.82138456,211.87,211.84,3.38070012]
[1756907877421,5.11138456,211.85,211.82,3.38070012]
[1756907877624,5.82138456,211.85,211.82,3.38070012]
[1756907878315,5.11138456,211.86,211.82,8.10164524]
[1756907878515,5.11138456,211.87,211.82,8.78164524]
[1756907878730,0.71,211.87,211.82,8.78164524]
[1756907878934,5.11138456,211.87,211.82,8.10164524]
[1756907879130,5.11138456,211.87,211.82,8.78164524]
[1756907879623,5.11138456,211.88,211.82,8.78164524]
[1756907879844,0.71,211.88,211.82,8.78164524]
[1756907880067,5.11138456,211.86,211.82,8.78164524]
[1756907880366,5.11138456,211.85,211.83,3.38070012]
[1756907880655,5.11138456,211.84,211.82,3.38070012]
[1756907880854,5.82138456,211.85,211.81,79.73]
[1756907881033,5.82138456,211.85,211.82,3.38070012]
[1756907881546,5.11138456,211.83,211.82,3.38070012]
[1756907881853,5.11138456,211.83,211.81,0.03]
[1756907881854,5.82138456,211.83,211.81,0.03]
[1756907882056,5.82138456,211.82,211.81,0.03]
[1756907884133,0.71,211.82,211.81,0.03]
[1756907884328,5.82138456,211.82,211.81,0.03]
[1756907884735,10.54237407,211.82,211.81,0.03]
[1756907886261,29.24935264,211.82,211.81,0.03]
[1756907886438,39.59559401,211.79,211.78,1e-08]
[1756907886763,39.59559401,211.79,211.76,0.03]
[1756907886764,39.59559401,211.77,211.76,0.03]
[1756907887068,44.70697857,211.77,211.76,0.03]
[1756907887232,45.41697857,211.77,211.76,0.03]
[1756907887750,50.13908273,211.77,211.76,0.03]
[1756907888937,45.41697857,211.77,211.76,0.03]
[1756907889135,36.54348872,211.77,211.76,0.03]
[1756907889361,11.80247379,211.82,211.76,0.03]
[1756907889362,13.59559401,211.81,211.76,0.03]
[1756907889674,4.72140831,211.81,211.76,0.03]
[1756907889966,5.11138456,211.77,211.76,0.03]
[1756907890262,5.11138456,211.77,211.69,26.0]
[1756907890263,26.0,211.7,211.68,0.03]
[1756907890453,5.11138456,211.69,211.68,0.03]
[1756907890759,0.71,211.72,211.68,0.03]
[1756907890963,4.94961171,211.79,211.68,0.03]
[1756907890964,5.11138456,211.71,211.68,0.03]
[1756907891551,5.11138456,211.7,211.68,0.03]
[1756907891750,5.11138456,211.69,211.68,0.03]
[1756907892066,26.0,211.73,211.68,0.03]
[1756907892236,5.11138456,211.69,211.68,0.03]
[1756907893058,5.79138456,211.69,211.68,0.03]
[1756907893560,5.11138456,211.69,211.68,0.03]
[1756907895061,0.68,211.71,211.68,0.03]
[1756907895062,1.89353594,211.75,211.68,0.03]
[1756907895245,5.11138456,211.72,211.68,0.74]
[1756907895446,5.11138456,211.73,211.69,0.71]
[1756907895678,5.11138456,211.73,211.7,0.71]
[1756907895975,5.11138456,211.72,211.69,5.43382796]
[1756907896469,5.11138456,211.77,211.7,0.71]
[1756907896769,5.11138456,211.77,211.71,5.11138456]
[1756907896948,0.68,211.8,211.72,0.71]
[1756907897144,5.43382796,211.81,211.72,0.71]
[1756907897453,0.74,211.84,211.74,5.11138456]
[1756907897766,5.11138456,211.81,211.75,0.71]
[1756907897984,5.11138456,211.81,211.76,4.72232716]
[1756907898277,5.11138456,211.79,211.74,31.43259412]
[1756907898472,5.11138456,211.78,211.75,0.71]
[1756907898650,5.11138456,211.76,211.72,0.71]
[1756907898852,5.11138456,211.76,211.73,0.71]
[1756907899071,0.68,211.81,211.74,0.71]
[1756907899273,5.11138456,211.79,211.74,0.71]
[1756907899446,0.68,211.81,211.74,0.71]
[1756907899650,5.11138456,211.78,211.73,0.71]
[1756907899979,0.68,211.81,211.75,4.72255017]
[1756907900176,5.11138456,211.79,211.75,5.43255017]
[1756907900376,5.11138456,211.79,211.75,4.72255017]
[1756907900678,5.11138456,211.8,211.76,0.71]
[1756907900882,26.68,211.82,211.75,4.72255017]
[1756907901055,26.68,211.82,211.71,11.8081563]
[1756907901056,30.7210581,211.82,211.72,4.72321934]
[1756907901389,0.68,211.81,211.71,4.72344244]
[1756907901545,0.68,211.8,211.7,26.71]
[1756907901745,0.68,211.79,211.7,26.71]
[1756907901950,4.72188119,211.78,211.7,31.43363331]
[1756907902146,0.68,211.77,211.7,30.72363331]
[1756907902448,0.68,211.77,211.7,26.0]
[1756907903366,0.68,211.77,211.69,0.71]
[1756907903565,0.68,211.77,211.69,5.43378959]
[1756907903772,0.68,211.8,211.7,0.71]
[1756907903980,0.06,211.78,211.7,0.71]
[1756907904159,0.68,211.77,211.7,0.71]
[1756907904471,0.06,211.78,211.7,5.43364458]
[1756907904666,0.06,211.78,211.71,0.71]
[1756907905966,0.06,211.78,211.72,4.72321934]
[1756907906163,0.06,211.78,211.73,0.71]
[1756907906554,0.68,211.77,211.72,4.72321934]
[1756907906755,0.68,211.76,211.69,0.71]
[1756907907679,0.68,211.76,211.69,5.43386094]
[1756907908485,0.06,211.78,211.7,0.71]
[1756907910076,0.06,211.78,211.73,30.72299626]
[1756907910284,0.06,211.78,211.74,0.71]
[1756907910581,0.06,211.78,211.75,0.71]
[1756907910778,0.06,211.78,211.76,0.71]
[1756907911166,0.06,211.78,211.76,26.71]
[1756907911681,0.06,211.78,211.77,0.71]
[1756907912063,0.06,211.78,211.76,26.0]
[1756907912260,0.06,211.78,211.75,4.72233302]
[1756907912480,0.06,211.78,211.74,4.72275029]
[1756907912679,0.06,211.78,211.74,5.43275029]
[1756907912981,0.06,211.78,211.75,0.71]
[1756907913452,0.06,211.78,211.72,4.72321934]
[1756907913656,0.06,211.78,211.72,5.43321934]
[1756907915863,0.68,211.77,211.71,26.0]
[1756907916272,0.68,211.77,211.71,4.72342165]
[1756907916477,0.68,211.77,211.69,5.43368381]
[1756907916683,0.68,211.77,211.69,80.41]
[1756907916861,5.40214468,211.77,211.69,5.43380712]
[1756907917168,4.72214468,211.77,211.69,5.43380712]
[1756907917368,0.68,211.76,211.69,5.43380712]
[1756907920589,0.06,211.78,211.72,26.0]
[1756907920767,0.06,211.78,211.73,0.71]
[1756907921983,0.06,211.78,211.74,0.67]
[1756907922185,0.06,211.78,211.75,0.67]
[1756907922569,0.06,211.78,211.76,0.67]
[1756907923698,0.06,211.78,211.77,0.67]
[1756907923985,0.06,211.78,211.73,26.0]
[1756907924164,0.06,211.78,211.74,0.67]
[1756907924364,0.06,211.78,211.75,0.67]
[1756907924684,0.06,211.78,211.76,0.67]
[1756907925188,0.06,211.78,211.77,0.67]
[1756907926458,0.06,211.78,211.76,4.72226522]
[1756907926664,0.06,211.78,211.77,0.67]
[1756907926964,0.06,211.78,211.74,4.72277321]
[1756907927182,0.06,211.78,211.75,0.67]
[1756907927572,0.06,211.78,211.74,4.72277321]
[1756907927774,0.06,211.78,211.75,0.67]
[1756907928290,0.06,211.78,211.74,84.42277321]
[1756907928490,0.71,211.78,211.74,84.42277321]
[1756907928717,0.65,211.77,211.74,79.7]
[1756907928878,0.65,211.77,211.71,5.42341784]
[1756907929074,0.06,211.78,211.71,5.42341784]
[1756907929388,0.06,211.78,211.71,4.75341784]
[1756907929689,0.06,211.78,211.72,0.67]
[1756907930177,0.06,211.78,211.74,26.0]
[1756907930378,0.06,211.78,211.75,0.67]
[1756907930570,0.06,211.78,211.76,0.67]
[1756907930890,0.06,211.78,211.77,4.72210416]
[1756907931292,0.06,211.78,211.77,5.39210416]
[1756907932477,1e-08,211.78,211.77,18.98769817]
[1756907935995,1e-08,211.78,211.77,99.25435067]
[1756907936297,1e-08,211.78,211.77,98.68769817]
[1756907936595,1e-08,211.78,211.77,98.97202131]
[1756907936793,0.06,211.83,211.81,39.59559401]
[1756907936983,0.06,211.83,211.81,119.29559401]
[1756907937181,0.06,211.83,211.82,14.26559401]
[1756907937688,0.06,211.83,211.82,18.98658352]
[1756907943087,0.06,211.83,211.82,98.68658352]
[1756907945702,0.06,211.83,211.82,110.42098951]
[1756907946197,0.71,211.83,211.82,4.72098951]
[1756907947482,0.06,211.83,211.82,4.72098951]
[1756907949597,0.06,211.83,211.82,5.39098951]
[1756907949911,1e-08,211.83,211.82,18.98658352]
[1756907951893,1e-08,211.83,211.82,98.68658352]
[1756907953315,1e-08,211.83,211.82,18.98658352]
[1756907957713,1e-08,211.83,211.82,18.97658352]
[1756907963121,0.06,211.86,211.83,26.0]
[1756907963320,0.77,211.86,211.83,26.0]
[1756907963905,0.77,211.86,211.83,105.7]
[1756907964813,0.71,211.85,211.81,26.03]
[1756907965012,0.71,211.84,211.81,26.03]
[1756907965321,0.71,211.83,211.81,26.03]
[1756907965627,0.71,211.83,211.81,30.75115465]
[1756907966118,0.71,211.82,211.81,4.75115465]
[1756907967924,0.71,211.82,211.81,0.03]
[1756907968224,0.71,211.84,211.81,0.03]
[1756907968402,0.71,211.83,211.81,0.03]
[1756907968603,0.71,211.82,211.81,0.03]
[1756907971213,0.06,211.86,211.81,26.69]
[1756907971527,0.06,211.86,211.82,0.66]
[1756907971709,0.77,211.86,211.81,26.69]
[1756907971909,0.77,211.86,211.82,16.5234633]
[1756907972109,0.77,211.86,211.82,17.1834633]
[1756907973506,0.77,211.86,211.82,16.5234633]
[1756907973706,0.77,211.86,211.82,17.1834633]
[1756907973909,0.06,211.86,211.82,16.5234633]
[1756907974109,0.77,211.86,211.82,17.1834633]
[1756907974426,0.06,211.86,211.82,17.1834633]
[1756907974917,0.77,211.86,211.82,17.1834633]
[1756907975112,0.06,211.86,211.82,16.5234633]
[1756907975328,0.06,211.86,211.83,0.66]
[1756907975705,0.06,211.86,211.83,80.36]
[1756907976317,0.06,211.87,211.86,13.59559401]
[1756907976621,0.06,211.88,211.86,93.86200579]
[1756907976827,0.71,211.92,211.89,26.0]
[1756907978527,0.71,211.92,211.9,30.71920717]
[1756907979614,0.06,211.96,211.9,30.71920717]
[1756907979808,0.71,211.93,211.9,30.71920717]
[1756907980729,0.77,211.91,211.9,30.71920717]
[1756907980910,0.06,211.91,211.9,30.71920717]
[1756907981324,0.77,211.91,211.87,4.71987539]
[1756907981622,0.71,211.9,211.87,30.71987539]
[1756907982006,0.71,211.9,211.87,4.71987539]
[1756907982321,0.71,211.9,211.87,30.71987539]
[1756907984622,0.06,211.91,211.88,0.65]
[1756907984809,0.06,211.91,211.89,0.65]
[1756907985135,0.06,211.91,211.89,80.35]
[1756907985315,0.06,211.91,211.9,31.36920717]
[1756907985835,0.06,211.91,211.9,30.71920717]
[1756907991335,0.74,211.91,211.9,4.71920717]
[1756907991838,0.06,211.91,211.9,4.71920717]
[1756907992143,0.06,211.91,211.9,5.36920717]
[1756907996044,0.06,211.91,211.9,4.71920717]
[1756907996336,0.06,211.91,211.9,5.36920717]
[1756907997035,0.06,211.91,211.89,26.03]
[1756907997242,0.06,211.91,211.89,111.09937793]
[1756907997542,0.06,211.91,211.89,31.39937793]
[1756907997747,0.06,211.91,211.89,30.74937793]
[1756907998933,0.06,211.91,211.89,31.39937793]
[1756907999244,0.06,211.91,211.9,0.65]
[1756907999623,0.74,211.91,211.89,0.03]
[1756907999824,0.06,211.91,211.89,4.74928407]
[1756908000028,0.06,211.91,211.89,5.39928407]
[1756908000227,0.06,211.91,211.89,4.74928407]
[1756908000524,0.06,211.91,211.9,0.65]
[1756908000725,0.06,211.91,211.89,30.74928407]
[1756908000970,0.06,211.94,211.91,13.59559401]
[1756908001125,0.06,211.94,211.93,39.59559401]
[1756908001328,0.06,211.96,211.93,39.59559401]
[1756908001528,1e-08,211.96,211.94,14.81179199]
[1756908001823,1e-08,211.97,211.96,39.59559401]
[1756908002259,1e-08,212.02,211.98,0.28432314]
[1756908002427,0.2,212.09,212.01,0.28432314]
[1756908002629,1.88986794,212.18,212.06,26.0]
[1756908002829,0.68,212.32,212.14,46.0]
[1756908003031,1.88861871,212.33,212.23,26.0]
[1756908003231,0.68,212.31,212.23,26.0]
[1756908003522,0.68,212.3,212.27,26.0]
[1756908003727,0.68,212.29,212.23,13.59559401]
[1756908004259,20.0,212.43,212.24,13.59559401]
[1756908004462,0.68,212.42,212.23,0.65]
[1756908004629,0.68,212.42,212.19,0.28432314]
[1756908004953,5.38770723,212.42,212.26,26.0]
[1756908005157,0.68,212.41,212.26,26.0]
[1756908005366,0.68,212.4,212.26,26.0]
[1756908005554,20.0,212.36,212.13,0.65]
[1756908005855,0.68,212.35,212.18,13.87991715]
[1756908006163,0.68,212.34,212.27,0.28432314]
[1756908006330,0.68,212.36,212.29,26.0]
[1756908006663,0.68,212.35,212.27,26.0]
[1756908006825,26.0,212.44,212.29,4.71053747]
[1756908006826,0.68,212.39,212.29,4.71053747]
[1756908007026,14.16029454,212.48,212.19,0.65]
[1756908007027,13.59559401,212.37,212.19,0.65]
[1756908007255,26.0,212.28,212.03,20.0]
[1756908007465,0.68,212.27,212.12,0.65]
[1756908007856,13.59559401,212.26,212.1,0.65]
[1756908008035,0.68,212.25,212.1,0.65]
[1756908008235,0.68,212.28,212.11,20.56574418]
[1756908008435,0.68,212.28,212.19,13.59559401]
[1756908008672,0.68,212.28,212.22,26.0]
[1756908008962,0.68,212.27,212.17,13.59559401]
[1756908009164,0.68,212.26,212.16,13.59559401]
[1756908009465,0.68,212.26,212.09,4.71495756]
[1756908009466,0.68,212.25,212.09,4.71495756]
[1756908009644,0.68,212.25,212.15,13.59559401]
[1756908009840,0.68,212.24,212.15,13.59559401]
[1756908010041,0.68,212.24,212.06,0.65]
[1756908010042,0.68,212.23,212.06,0.65]
[1756908010241,26.0,212.18,211.99,0.65]
[1756908010448,0.68,212.17,211.99,0.65]
[1756908010852,16.4969834,212.16,212.0,26.0]
[1756908011048,0.68,212.15,212.03,13.59559401]
[1756908011279,0.68,212.14,212.0,26.0]
[1756908011467,16.4969834,212.16,212.0,26.65]
[1756908011468,0.68,212.13,212.0,26.65]
[1756908011770,0.69,212.12,212.0,0.65]
[1756908012068,0.69,212.12,211.98,13.59559401]
[1756908012253,0.69,212.11,211.98,13.59559401]
[1756908012448,0.69,212.11,211.97,34.71]
[1756908012449,0.69,212.1,211.97,34.0]
[1756908012653,26.0,212.13,211.97,34.0]
[1756908012654,0.69,212.09,211.97,34.0]
[1756908012964,14.17735876,212.1,211.98,0.71]
[1756908013171,14.17735876,212.1,212.03,13.59559401]
[1756908013342,0.69,212.15,212.07,13.59559401]
[1756908013675,0.69,212.18,212.11,13.59559401]
[1756908013864,0.69,212.21,212.11,14.30559401]
[1756908014062,0.69,212.2,212.06,0.71]
[1756908014263,0.69,212.2,212.06,4.83746038]
[1756908014264,26.0,212.16,212.06,4.83746038]
[1756908014464,26.0,212.12,211.97,48.17333994]
[1756908014636,0.69,212.11,211.98,0.71]
[1756908014842,14.8646793,212.15,212.01,26.0]
[1756908015051,0.69,212.15,212.05,26.0]
[1756908015248,0.69,212.14,212.05,26.0]
[1756908015455,0.69,212.13,212.05,26.0]
[1756908015762,4.71342383,212.16,212.05,26.71]
[1756908015763,5.40342383,212.16,212.05,26.71]
[1756908015956,0.69,212.15,212.05,26.0]
[1756908016152,0.69,212.14,212.05,26.0]
[1756908016470,0.06,212.18,212.09,26.0]
[1756908016671,5.40327317,212.17,212.01,0.71]
[1756908016864,43.18627736,212.17,212.06,26.0]
[1756908017064,30.71327317,212.17,212.06,26.71]